fUSD/lending_fUSD_20250313
["ID","MTS","AMOUNT","RATE_DAILY","PERIOD"]
[356112888,1741909938996,-950.08,0.00025628,3]
[356112889,1741909939018,-1153.097042,0.00025628,3]
[356112890,1741909939035,-663.57,0.00025628,3]
[356112891,1741909939056,-638.89,0.00025628,3]
[356112892,1741909939078,-1612.32215653,0.00025628,3]
[356112893,1741909939098,-366.121728,0.00025628,3]
[356112894,1741909939117,-1194.86,0.00025628,3]
[356112895,1741909939136,-866.68,0.00025628,3]
[356112896,1741909939156,-542.19,0.00025628,3]
[356112897,1741909939172,-1909.43,0.00025628,3]
[356112898,1741909939192,-632.82,0.00025628,3]
[356112899,1741909939207,-503.31474872,0.00025628,3]
[356112900,1741909939228,-957.65,0.00025628,3]
[356112901,1741909939246,-1718.94,0.00025628,3]
[356112902,1741909939264,-687.07,0.00025628,3]
[356112903,1741909939282,-593.31,0.00025628,3]
[356112904,1741909939299,-1023.70358216,0.00025628,3]
[356112905,1741909939316,-1537.99,0.00025628,3]
[356112906,1741909939334,-705.12,0.00025628,3]
[356112907,1741909939349,-2081.82,0.00025628,3]
[356112908,1741909939366,-595.3,0.00025628,3]
[356112909,1741909939384,-602.43,0.00025628,3]
[356112910,1741909939400,-581.8,0.00025628,3]
[356112911,1741909939418,-2182.31,0.00025628,3]
[356112912,1741909939434,-1551.29632445,0.00025628,3]
[356112913,1741909939450,-1223.35,0.00025628,3]
[356112914,1741909939471,-705.21,0.00025628,3]
[356112915,1741909939487,-443.878046,0.00025628,3]
[356112916,1741909939505,-513.62,0.00025628,3]
[356112917,1741909939521,-575.81,0.00025628,3]
[356112918,1741909939538,-2382.43,0.00025628,3]
[356112919,1741909939555,-1703.64,0.00025628,3]
[356112920,1741909939570,-500.0,0.00025628,3]
[356112921,1741909939586,-1670.95,0.00025628,3]
[356112922,1741909939602,-1633.72,0.00025628,3]
[356112923,1741909939619,-3566.18,0.00025628,2]
[356112924,1741909939634,-2647.09162427,0.00025628,3]
[356112925,1741909939650,-694.9,0.00025628,3]
[356112926,1741909939666,-1632.96,0.00025628,3]
[356112927,1741909939681,-1051.26,0.00025628,3]
[356112928,1741909939696,-703.65,0.00025628,3]
[356112929,1741909939713,-1726.02,0.00025628,3]
[356112930,1741909939728,-1122.17062878,0.00025628,3]
[356112931,1741909939745,-1847.97,0.00025628,3]
[356112932,1741909939761,-1030.95,0.00025628,3]
[356112933,1741909939777,-547.85,0.00025628,3]
[356112934,1741909939793,-732.74,0.00025628,3]
[356112935,1741909939808,-685.36919422,0.00025628,3]
[356112936,1741909939824,-636.55,0.00025628,3]
[356112937,1741909939838,-623.75,0.00025628,3]
[356112938,1741909939853,-1821.54368709,0.00025629,3]
[356112939,1741909939870,-534.22,0.00025629,3]
[356112940,1741909939886,-721.13721653,0.00025629,3]
[356112941,1741909939902,-835.32933815,0.00025629,3]
[356112942,1741909939918,-640.46992431,0.00025629,3]
[356112943,1741909939935,-193.73,0.00025629,3]
[356112944,1741909939951,-1649.89532251,0.00025629,3]
[356112945,1741909939968,-602.8553493,0.00025629,3]
[356112946,1741909939984,-717.41002737,0.00025629,3]
[356112947,1741909940000,-938.75026854,0.00025629,3]
[356112948,1741909940016,-1058.93127101,0.00025629,3]
[356112949,1741909940033,-942.53328694,0.00025629,3]
[356112950,1741909940049,-578.6712654,0.00025629,3]
[356112951,1741909940064,-909.5132881,0.00025629,3]
[356112952,1741909940079,-618.63566626,0.00025629,3]
[356112953,1741909940095,-610.20369249,0.00025629,3]
[356112954,1741909940110,-1597.23829168,0.00025629,3]
[356112955,1741909940125,-1208.83,0.00025629,3]
[356112956,1741909940140,-961.37568628,0.00025629,3]
[356112957,1741909940156,-946.18723431,0.00025629,3]
[356112958,1741909940172,-599.08414229,0.00025629,3]
[356112959,1741909940187,-1322.8,0.00025629,3]
[356112960,1741909940203,-524.06,0.00025629,3]
[356112961,1741909940219,-500.0,0.00025629,3]
[356112962,1741909940235,-1064.66,0.00025629,3]
[356112963,1741909940250,-1163.03,0.00025629,3]
[356112964,1741909940266,-2009.2,0.00025629,3]
[356112965,1741909940281,-1104.97944354,0.00025629,3]
[356112966,1741909940296,-1347.49728734,0.00025629,2]
[356112967,1741909940311,-1045.89,0.00025629,3]
[356112968,1741909940327,-1177.27,0.00025629,3]
[356112969,1741909940342,-1278.84489747,0.00025629,3]
[356112970,1741909940357,-1471.55,0.00025629,3]
[356112971,1741909940372,-1032.33325285,0.00025629,3]
[356112972,1741909940387,-516.89,0.00025629,3]
[356112973,1741909940402,-1030.16973769,0.00025629,3]
[356112974,1741909940417,-520.87,0.00025629,3]
[356112975,1741909940433,-583.57,0.00025629,3]
[356112976,1741909940448,-531.33333405,0.00025629,3]
[356112977,1741909940465,-549.11,0.00025629,3]
[356112978,1741909940480,-665.20429291,0.00025629,3]
[356112979,1741909940496,-500.0,0.00025629,2]
[356112980,1741909940511,-1886.33,0.00025629,3]
[356112981,1741909940526,-1603.3,0.00025629,3]
[356112982,1741909940544,-1399.45767284,0.00025629,3]
[356112983,1741909940559,-507.55,0.00025629,3]
[356112984,1741909940574,-1162.39904605,0.00025629,3]
[356112985,1741909940589,-503.1,0.00025629,3]
[356112986,1741909940605,-637.46396324,0.00025629,3]
[356112987,1741909940620,-1799.26,0.00025629,3]
[356112988,1741909940635,-236.7926123,0.00025629,3]
[356112989,1741909940650,-1038.47,0.00025629,3]
[356112990,1741909940665,-1489.06075186,0.00025629,3]
[356112991,1741909940680,-509.87,0.00025629,3]
[356112992,1741909940695,-1529.19,0.00025629,3]
[356112993,1741909940710,-1146.19,0.00025629,3]
[356112994,1741909940725,-1616.64250362,0.00025629,3]
[356112995,1741909940744,-1230.07,0.00025629,3]
[356112996,1741909940760,-503.18,0.00025629,3]
[356112997,1741909940776,-828.77,0.00025629,3]
[356112998,1741909940792,-566.70905469,0.00025629,3]
[356112999,1741909940808,-766.89,0.00025629,3]
[356113000,1741909940824,-877.92,0.00025629,3]
[356113001,1741909940840,-1515.39048093,0.00025629,3]
[356113002,1741909940856,-974.37,0.00025629,3]
[356113003,1741909940872,-637.92080881,0.00025629,3]
[356113004,1741909940887,-878.52,0.00025629,3]
[356113005,1741909940902,-486.91866467,0.00025629,3]
[356113006,1741909940919,-581.67,0.00025629,3]
[356113007,1741909940934,-1951.23498482,0.00025629,3]
[356113008,1741909940950,-2023.2,0.00025629,3]
[356113009,1741909940966,-2022.67,0.00025629,3]
[356113010,1741909940980,-1071.52,0.00025629,3]
[356113011,1741909940995,-1319.61351855,0.00025629,3]
[356113012,1741909941011,-1318.79,0.00025629,3]
[356113013,1741909941026,-817.82,0.00025629,3]
[356113014,1741909941043,-1858.28,0.00025629,3]
[356113015,1741909941058,-1341.33,0.00025629,3]
[356113016,1741909941072,-1345.3,0.00025629,3]
[356113017,1741909941339,-1005.07,0.00025629,3]
[356113018,1741909941377,-2009.8,0.00025629,3]
[356113019,1741909941386,-761.84321334,0.00025629,3]
[356113020,1741909941397,-1194.75,0.00025629,3]
[356113021,1741909941407,-1173.33,0.00025629,3]
[356113022,1741909941416,-3283.37,0.00025629,3]
[356113023,1741909941426,-647.14,0.00025629,3]
[356113024,1741909941435,-611.06501185,0.00025629,3]
[356113025,1741909941445,-1389.09,0.00025629,3]
[356113026,1741909941455,-558.82,0.00025629,3]
[356113027,1741909941468,-535.09,0.00025629,3]
[356113028,1741909941477,-1705.22,0.00025629,3]
[356113029,1741909941487,-792.23027926,0.00025629,3]
[356113030,1741909941497,-1894.83391072,0.00025629,3]
[356113031,1741909941507,-1930.60444699,0.00025629,3]
[356113032,1741909941517,-573.45,0.00025629,3]
[356113033,1741909941527,-4252.22,0.00025629,3]
[356113034,1741909941541,-1350.01109665,0.00025629,3]
[356113035,1741909941552,-957.24,0.00025629,3]
[356113036,1741909941560,-813.96,0.00025629,3]
[356113037,1741909941570,-500.0,0.00025629,3]
[356113038,1741909941580,-666.39665014,0.00025629,3]
[356113039,1741909941590,-1214.54,0.00025629,3]
[356113040,1741909941599,-659.80587638,0.00025629,3]
[356113041,1741909941608,-740.87733898,0.00025629,3]
[356113042,1741909941617,-1011.7,0.00025629,3]
[356113043,1741909941627,-1446.20440633,0.00025629,3]
[356113044,1741909941637,-509.81,0.00025629,3]
[356113045,1741909941646,-506.74270052,0.00025629,3]
[356113046,1741909941655,-1624.15,0.00025629,3]
[356113047,1741909941665,-1714.12,0.00025629,3]
[356113048,1741909941675,-1453.97,0.00025629,3]
[356113049,1741909941684,-1542.67168648,0.00025629,3]
[356113050,1741909941693,-679.47110566,0.00025629,3]
[356113051,1741909941703,-511.82,0.00025629,3]
[356113052,1741909941712,-732.6,0.00025629,3]
[356113053,1741909941721,-509.66400366,0.00025629,3]
[356113054,1741909941731,-528.57,0.00025629,3]
[356113055,1741909941741,-803.94,0.00025629,3]
[356113056,1741909941751,-1621.13,0.00025629,3]
[356113057,1741909941760,-684.37,0.00025629,3]
[356113058,1741909941770,-500.0,0.00025629,3]
[356113059,1741909941781,-3776.58477776,0.00025629,3]
[356113060,1741909941790,-568.39,0.00025629,3]
[356113061,1741909941799,-1817.80971386,0.00025629,3]
[356113062,1741909941809,-1602.7,0.00025629,3]
[356113063,1741909941819,-500.0,0.00025629,3]
[356113064,1741909941828,-938.31,0.00025629,3]
[356113065,1741909941838,-728.56,0.00025629,3]
[356113066,1741909941848,-1921.99125045,0.00025629,3]
[356113067,1741909941858,-515.32261965,0.00025629,3]
[356113068,1741909941867,-520.06810815,0.00025629,3]
[356113069,1741909941877,-547.61335577,0.00025629,3]
[356113070,1741909941887,-1144.38,0.00025629,3]
[356113071,1741909941896,-1019.22,0.00025629,3]
[356113072,1741909941906,-742.83066488,0.00025629,3]
[356113073,1741909941915,-501.97,0.00025629,3]
[356113074,1741909941925,-500.0,0.00025629,3]
[356113075,1741909941934,-947.35459706,0.00025629,3]
[356113076,1741909941944,-408.93,0.00025629,3]
[356113077,1741909941954,-1068.95169507,0.00025629,3]
[356113078,1741909941963,-1182.53,0.00025629,3]
[356113079,1741909941973,-1771.60684714,0.00025655,3]
[356113080,1741909941982,-1290.97389555,0.00025655,3]
[356113081,1741909941992,-559.84,0.00025655,3]
[356113082,1741909942002,-1583.01141176,0.00025655,3]
[356113083,1741909942012,-299.75326265,0.00025655,3]
[356113084,1741909942021,-628.44,0.00025655,3]
[356113085,1741909942031,-534.55347788,0.00025655,3]
[356113086,1741909942041,-1267.74551811,0.00025655,3]
[356113087,1741909942051,-1653.03745719,0.00025655,3]
[356113088,1741909942060,-2343.79342445,0.00025655,3]
[356113089,1741909942070,-534.34307347,0.00025655,3]
[356113090,1741909942079,-856.07,0.00025655,3]
[356113091,1741909942088,-1751.4541098,0.00025655,3]
[356113092,1741909942098,-521.56,0.00025655,3]
[356113093,1741909942107,-1817.16614892,0.00025655,3]
[356113094,1741909942117,-1529.82597627,0.00025655,3]
[356113095,1741909942126,-626.66,0.00025655,3]
[356113096,1741909942135,-1836.96870077,0.00025655,3]
[356113097,1741909942145,-647.2394514,0.00025655,3]
[356113098,1741909942154,-2785.08861844,0.00025655,3]
[356113099,1741909942164,-972.51566694,0.00025655,3]
[356113100,1741909942173,-950.08,0.00025655,3]
[356113101,1741909942182,-663.57990348,0.00025655,3]
[356113102,1741909942191,-1195.04588274,0.00025655,3]
[356113103,1741909942201,-542.19,0.00025655,3]
[356113104,1741909942210,-633.02,0.00025655,3]
[356113105,1741909942220,-1719.079639,0.00025655,3]
[356113106,1741909942230,-593.53,0.00025655,3]
[356113107,1741909942239,-1538.10493662,0.00025655,3]
[356113108,1741909942248,-595.41,0.00025655,3]
[356113109,1741909942258,-2182.45882801,0.00025655,3]
[356113110,1741909942268,-705.3,0.00025655,3]
[356113111,1741909942278,-513.83,0.00025655,3]
[356113112,1741909942289,-1703.78933035,0.00025655,3]
[356113113,1741909942299,-322.45,0.00025655,3]
[356113114,1741909942309,-3566.23067318,0.00025655,2]
[356113115,1741909942319,-1632.98092907,0.00025655,3]
[356113116,1741909942328,-1051.37,0.00025655,3]
[356113117,1741909942339,-1031.02,0.00025655,3]
[356113118,1741909942348,-732.85162816,0.00025655,3]
[356113119,1741909942357,-636.55852773,0.00025655,3]
[356113120,1741909942367,-1322.9927929,0.00025656,3]
[356113121,1741909942376,-314.88,0.00025656,3]
[356113122,1741909942386,-2009.36006175,0.00025656,3]
[356113123,1741909942395,-1045.95934458,0.00025656,3]
[356113124,1741909942405,-516.90566733,0.00025656,3]
[356113125,1741909942414,-520.95,0.00025656,3]
[356113126,1741909942424,-549.15,0.00025656,3]
[356113127,1741909942433,-264.54,0.00025656,2]
[356113128,1741909942442,-1886.4190763,0.00025656,3]
[356113129,1741909942453,-1603.42181757,0.00025656,3]
[356113130,1741909942466,-507.7,0.00025656,3]
[356113131,1741909942476,-1799.36543222,0.00025656,3]
[356113132,1741909942485,-1038.52519294,0.00025656,3]
[356113133,1741909942495,-1529.33627944,0.00025656,3]
[356113134,1741909942504,-1146.38113595,0.00025656,3]
[356113135,1741909942514,-1230.27379104,0.00025656,3]
[356113136,1741909942524,-828.96870841,0.00025656,3]
[356113137,1741909942536,-767.00482466,0.00025656,3]
[356113138,1741909942546,-974.55908621,0.00025656,3]
[356113139,1741909942556,-878.6746972,0.00025656,3]
[356113140,1741909942566,-581.68154361,0.00025656,3]
[356113141,1741909942576,-2023.42330858,0.00025656,3]
[356113142,1741909942585,-3568.36,0.00025656,3]
[356113143,1741909942595,-2022.81205687,0.00025656,3]
[356113144,1741909942604,-1071.71676913,0.00025656,3]
[356113145,1741909942619,-1318.99447308,0.00025656,3]
[356113146,1741909942628,-817.87157494,0.00025656,3]
[356113147,1741909942638,-1858.44547978,0.00025656,3]
[356113148,1741909942647,-1341.50594808,0.00025656,3]
[356113149,1741909942657,-1345.4427235,0.00025656,3]
[356113150,1741909942666,-2980.86,0.00025656,3]
[356113151,1741909942676,-1005.11655872,0.00025656,3]
[356113152,1741909942685,-2009.94098556,0.00025656,3]
[356113153,1741909942694,-3283.37,0.00025656,3]
[356113154,1741909942703,-1531.97,0.00025656,3]
[356113155,1741909942713,-647.18963177,0.00025656,3]
[356113156,1741909942722,-1389.10266965,0.00025656,3]
[356113157,1741909942731,-558.82,0.00025656,3]
[356113158,1741909942741,-535.13,0.00025656,3]
[356113159,1741909942750,-1705.28852282,0.00025656,3]
[356113160,1741909942759,-767.63,0.00025656,3]
[356113161,1741909942769,-638.89,0.00025656,3]
[356113162,1741909942778,-573.50619388,0.00025656,3]
[356113163,1741909942790,-4252.29190618,0.00025656,3]
[356113164,1741909942799,-866.68,0.00025656,3]
[356113165,1741909942809,-957.24,0.00025656,3]
[356113166,1741909942818,-814.19213463,0.00025656,3]
[356113167,1741909942827,-1909.43,0.00025656,3]
[356113168,1741909942836,-500.0,0.00025656,3]
[356113169,1741909942846,-1214.66056229,0.00025656,3]
[356113170,1741909942856,-957.65,0.00025656,3]
[356113171,1741909942865,-1011.79886032,0.00025656,3]
[356113172,1741909942874,-509.81,0.00025656,3]
[356113173,1741909942884,-705.12,0.00025656,3]
[356113174,1741909942894,-1624.32101066,0.00025656,3]
[356113175,1741909942903,-1714.16471957,0.00025656,3]
[356113176,1741909942913,-581.8,0.00025656,3]
[356113177,1741909942923,-1453.97,0.00025656,3]
[356113178,1741909942932,-511.93,0.00025656,3]
[356113179,1741909942941,-732.79,0.00025656,3]
[356113180,1741909942950,-1223.35,0.00025656,3]
[356113181,1741909942959,-1621.29298857,0.00025656,3]
[356113182,1741909942969,-684.4595261,0.00025656,3]
[356113183,1741909942979,-500.0,0.00025656,3]
[356113184,1741909942988,-2382.43,0.00025656,3]
[356113185,1741909942998,-568.48199246,0.00025656,3]
[356113186,1741909943007,-1633.72,0.00025656,3]
[356113187,1741909943017,-1670.95,0.00025656,3]
[356113188,1741909943027,-1602.76413577,0.00025656,3]
[356113189,1741909943037,-402.87,0.00025656,3]
[356113190,1741909943046,-728.56,0.00025656,3]
[356113191,1741909943056,-1726.02,0.00025656,3]
[356113192,1741909943066,-1847.97,0.00025656,3]
[356113193,1741909943075,-1144.49457803,0.00025656,3]
[356113194,1741909943084,-1019.41,0.00025656,3]
[356113195,1741909943094,-502.08856363,0.00025656,3]
[356113196,1741909943103,-500.0,0.00025656,3]
[356113197,1741909943112,-3568.36,0.00025683,3]
[356113198,1741909943121,-2980.86,0.00025683,3]
[356113199,1741909943130,-1531.97,0.00025683,3]
[356113200,1741909943139,-767.63,0.00025683,3]
[356113201,1741909943148,-638.89,0.00025683,3]
[356113202,1741909943157,-866.68,0.00025683,3]
[356113203,1741909943167,-1909.43,0.00025683,3]
[356113204,1741909943176,-957.65,0.00025683,3]
[356113205,1741909943186,-705.12,0.00025683,3]
[356113206,1741909943196,-581.8,0.00025683,3]
[356113207,1741909943205,-1223.35,0.00025683,3]
[356113208,1741909943214,-2382.43,0.00025683,3]
[356113209,1741909943224,-1633.72,0.00025683,3]
[356113210,1741909943233,-1670.95,0.00025683,3]
[356113211,1741909943243,-1726.02,0.00025683,3]
[356113212,1741909943252,-1847.97,0.00025683,3]
[356113213,1741909943262,-3283.37,0.00025684,3]
[356113214,1741909943271,-500.0,0.00025684,3]
[356113215,1741909943281,-1453.97,0.00025684,3]
[356113216,1741909943291,-500.0,0.00025684,3]
[356113217,1741909943301,-728.56,0.00025684,3]
[356113218,1741909943310,-500.0,0.00025684,3]
[356113219,1741909943320,-3568.45911577,0.0002571,3]
[356113220,1741909943329,-2980.96373258,0.0002571,3]
[356113221,1741909943338,-1532.19220734,0.0002571,3]
[356113222,1741909943347,-767.64,0.0002571,3]
[356113223,1741909943356,-638.9,0.0002571,3]
[356113224,1741909943366,-866.88,0.0002571,3]
[356113225,1741909943375,-1909.6388723,0.0002571,3]
[356113226,1741909943384,-957.80933659,0.0002571,3]
[356113227,1741909943395,-705.28013566,0.0002571,3]
[356113228,1741909943404,-581.92266388,0.0002571,3]
[356113229,1741909943413,-1223.36793001,0.0002571,3]
[356113230,1741909943422,-2382.45,0.0002571,3]
[356113231,1741909943432,-1633.79,0.0002571,3]
[356113232,1741909943442,-1671.03,0.0002571,3]
[356113233,1741909943451,-1726.24,0.0002571,3]
[356113234,1741909943463,-1848.07500295,0.0002571,3]
[356113235,1741909943472,-3283.37,0.00025711,3]
[356113236,1741909943481,-500.0,0.00025711,3]
[356113237,1741909943491,-1453.97,0.00025711,3]
[356113238,1741909943501,-500.0,0.00025711,3]
[356113239,1741909943511,-728.56,0.00025711,3]
[356113240,1741909943520,-500.0,0.00025711,3]
[356113241,1741909943530,-3283.37,0.00025739,3]
[356113242,1741909943542,-500.0,0.00025739,3]
[356113243,1741909943553,-1453.97,0.00025739,3]
[356113244,1741909943563,-500.0,0.00025739,3]
[356113245,1741909943572,-728.56,0.00025739,3]
[356113246,1741909943582,-500.0,0.00025739,3]
[356113247,1741909943592,-3283.37,0.00025766,3]
[356113248,1741909943602,-500.0,0.00025766,3]
[356113249,1741909943611,-1453.97,0.00025766,3]
[356113250,1741909943620,-500.0,0.00025766,3]
[356113251,1741909943630,-728.56,0.00025766,3]
[356113252,1741909943640,-500.0,0.00025766,3]
[356113253,1741909943649,-3283.37,0.00025793,3]
[356113254,1741909943658,-452.5,0.00025793,3]
[356113255,1741909943668,-1453.97,0.00025793,3]
[356113256,1741909943677,-500.0,0.00025793,3]
[356113257,1741909943687,-728.56,0.00025793,3]
[356113258,1741909943697,-500.0,0.00025793,3]
[356113259,1741909943706,-846.5,0.0002582,2]
[356113260,1741909943716,-3283.37,0.00025821,3]
[356113261,1741909943726,-1453.97,0.00025821,3]
[356113262,1741909943735,-728.56,0.00025821,3]
[356113263,1741909943745,-500.0,0.00025821,3]
[356113264,1741909943755,-3283.37,0.00025848,3]
[356113265,1741909943764,-1453.97,0.00025848,3]
[356113266,1741909943773,-728.56,0.00025848,3]
[356113267,1741909943784,-500.0,0.00025848,3]
[356113268,1741909943794,-3283.37,0.00025876,3]
[356113269,1741909943803,-1453.97,0.00025876,3]
[356113270,1741909943813,-728.56,0.00025876,3]
[356113271,1741909943822,-500.0,0.00025876,3]
[356113272,1741909943832,-300.0,0.000259,9]
[356113273,1741909943842,-3283.37,0.00025903,3]
[356113274,1741909943851,-1453.97,0.00025903,3]
[356113275,1741909943860,-728.56,0.00025903,3]
[356113276,1741909943871,-176.77161321,0.00025903,3]
[356113277,1741909943880,-3283.4588038,0.0002593,3]
[356113278,1741909943890,-1454.11311506,0.0002593,3]
[356113279,1741909943899,-728.64714826,0.0002593,3]
[356113280,1741909943908,-433.78047151,0.00025936,2]
[356113281,1741909943917,-1000.0,0.00026,2]
[356113282,1741909943927,-150.0,0.00026059,2]
[356113283,1741909943937,-846.5,0.00026094,2]
[356113284,1741909943946,-193.84,0.000261,2]
[356113285,1741909943956,-214710.41929905,0.00026142,18]
[356113286,1741909943965,-169.99,0.00026164,2]
[356113287,1741909943974,-151.0,0.00026167,7]
[356113288,1741909943984,-151.0,0.00026167,7]
[356113289,1741909943993,-151.0,0.00026167,7]
[356113290,1741909944003,-151.0,0.00026167,7]
[356113291,1741909944012,-151.0,0.00026167,7]
[356113292,1741909944022,-151.0,0.00026176,7]
[356113293,1741909944031,-163.323963,0.00026176,7]
[356113294,1741909944041,-163.323963,0.00026176,7]
[356113295,1741909944051,-4207.041718,0.00026176,7]
[356113296,1741909944060,-4207.041718,0.00026176,7]
[356113297,1741909944069,-151.0,0.00026176,7]
[356113298,1741909944079,-1243.4,0.00026176,3]
[356113299,1741909944089,-4021.1,0.00026176,3]
[356113300,1741909944098,-1149.36,0.00026176,3]
[356113301,1741909944108,-686.34,0.00026176,3]
[356113302,1741909944118,-1365.3,0.00026176,3]
[356113303,1741909944127,-500.0,0.00026176,3]
[356113304,1741909944136,-658.04,0.00026176,3]
[356113305,1741909944145,-1356.05,0.00026176,3]
[356113306,1741909944155,-1000.0,0.00026176,3]
[356113307,1741909944164,-530.22,0.00026176,3]
[356113308,1741909944174,-517.5,0.00026176,3]
[356113309,1741909944183,-500.0,0.00026176,3]
[356113310,1741909944192,-500.0,0.00026176,3]
[356113311,1741909944202,-500.0,0.00026176,3]
[356113312,1741909944211,-1735.89,0.00026176,3]
[356113313,1741909944220,-151.0,0.00026177,7]
[356113314,1741909944229,-151.0,0.00026177,7]
[356113315,1741909944239,-151.0,0.00026177,7]
[356113316,1741909944248,-151.0,0.00026177,7]
[356113317,1741909944257,-301.023622,0.00026177,7]
[356113318,1741909944267,-151.0,0.00026177,7]
[356113319,1741909944276,-1243.4,0.00026203,3]
[356113320,1741909944286,-4021.1,0.00026203,3]
[356113321,1741909944296,-1149.36,0.00026203,3]
[356113322,1741909944306,-686.34,0.00026203,3]
[356113323,1741909944315,-1365.3,0.00026203,3]
[356113324,1741909944324,-500.0,0.00026203,3]
[356113325,1741909944335,-658.04,0.00026203,3]
[356113326,1741909944344,-1356.05,0.00026203,3]
[356113327,1741909944354,-1000.0,0.00026203,3]
[356113328,1741909944364,-530.22,0.00026203,3]
[356113329,1741909944374,-517.5,0.00026203,3]
[356113330,1741909944383,-500.0,0.00026203,3]
[356113331,1741909944393,-500.0,0.00026203,3]
[356113332,1741909944403,-500.0,0.00026203,3]
[356113333,1741909944412,-1735.89,0.00026203,3]
[356113334,1741909944422,-1243.4,0.00026231,3]
[356113335,1741909944432,-4021.1,0.00026231,3]
[356113336,1741909944442,-1149.36,0.00026231,3]
[356113337,1741909944452,-686.34,0.00026231,3]
[356113338,1741909944461,-1365.3,0.00026231,3]
[356113339,1741909944474,-500.0,0.00026231,3]
[356113340,1741909944484,-658.04,0.00026231,3]
[356113341,1741909944493,-1356.05,0.00026231,3]
[356113342,1741909944504,-1000.0,0.00026231,3]
[356113343,1741909944514,-530.22,0.00026231,3]
[356113344,1741909944524,-517.5,0.00026231,3]
[356113345,1741909944533,-500.0,0.00026231,3]
[356113346,1741909944543,-500.0,0.00026231,3]
[356113347,1741909944554,-500.0,0.00026231,3]
[356113348,1741909944564,-1735.89,0.00026231,3]
[356113349,1741909944575,-151.0,0.00026258,7]
[356113350,1741909944584,-151.0,0.00026258,7]
[356113351,1741909944593,-151.0,0.00026258,7]
[356113352,1741909944603,-151.0,0.00026258,7]
[356113353,1741909944612,-1243.4,0.00026258,3]
[356113354,1741909944622,-4021.1,0.00026258,3]
[356113355,1741909944632,-1149.36,0.00026258,3]
[356113356,1741909944642,-686.34,0.00026258,3]
[356113357,1741909944651,-1365.3,0.00026258,3]
[356113358,1741909944661,-500.0,0.00026258,3]
[356113359,1741909944670,-658.04,0.00026258,3]
[356113360,1741909944680,-1356.05,0.00026258,3]
[356113361,1741909944689,-1000.0,0.00026258,3]
[356113362,1741909944698,-530.22,0.00026258,3]
[356113363,1741909944709,-517.5,0.00026258,3]
[356113364,1741909944937,-500.0,0.00026258,3]
[356113365,1741909944948,-500.0,0.00026258,3]
[356113366,1741909944958,-500.0,0.00026258,3]
[356113367,1741909944967,-1735.89,0.00026258,3]
[356113368,1741909944977,-500.0,0.00026264,3]
[356113369,1741909944987,-152.866896,0.00026265,7]
[356113370,1741909944997,-151.0,0.00026265,7]
[356113371,1741909945007,-151.0,0.00026265,7]
[356113372,1741909945017,-151.0,0.00026265,7]
[356113373,1741909945027,-151.0,0.00026265,7]
[356113374,1741909945037,-160.148705,0.00026265,7]
[356113375,1741909945047,-163.323963,0.00026265,7]
[356113376,1741909945056,-163.323963,0.00026265,7]
[356113377,1741909945067,-4207.041718,0.00026265,7]
[356113378,1741909945077,-4207.041718,0.00026265,7]
[356113379,1741909945086,-151.945352,0.00026265,7]
[356113380,1741909945097,-500.0,0.00026265,3]
[356113381,1741909945107,-151.0,0.00026266,7]
[356113382,1741909945117,-464.348144,0.00026266,7]
[356113383,1741909945127,-151.0,0.00026266,7]
[356113384,1741909945136,-464.348144,0.00026266,7]
[356113385,1741909945146,-151.0,0.00026266,7]
[356113386,1741909945156,-151.0,0.00026266,7]
[356113387,1741909945166,-151.0,0.00026266,7]